[Event "Live Chess"]
[Site "Chess.com"]
[Date "2024.06.01"]
[Round "-"]
[White "ACM42"]
[Black "Eva3337"]
[Result "1-0"]
[WhiteElo "2220"]
[BlackElo "1159"]
[TimeControl "300"]
[EndTime "12:22:20 PDT"]
[Termination "ACM42 won by resignation"]

1. e4 {[%clk 0:04:56.9]} 1... Nc6 {[%clk 0:04:58.8]} 2. d4 {[%clk 0:04:52.8]}
2... e6 {[%clk 0:04:54.4]} 3. Nc3 {[%clk 0:04:47.3]} 3... d6 {[%clk 0:04:52.7]}
4. f4 {[%clk 0:04:37.4]} 4... Bd7 {[%clk 0:04:51.1]} 5. Nf3 {[%clk 0:04:36.4]}
5... Be7 {[%clk 0:04:49.5]} 6. Bd3 {[%clk 0:04:35]} 6... h6 {[%clk 0:04:26.7]}
7. O-O {[%clk 0:03:51.9]} 7... g5 {[%clk 0:04:05.9]} 8. f5 {[%clk 0:03:44.9]}
8... g4 {[%clk 0:04:02.9]} 9. Ne1 {[%clk 0:03:32.9]} 9... exf5 {[%clk
0:03:54.8]} 10. exf5 {[%clk 0:03:29.1]} 10... Bg5 {[%clk 0:03:49.8]} 11. Qxg4
{[%clk 0:03:22.5]} 11... Bxc1 {[%clk 0:03:44.6]} 12. Rxc1 {[%clk 0:03:19.6]}
12... Qf6 {[%clk 0:03:30.4]} 13. Nd5 {[%clk 0:03:17.8]} 13... Qd8 {[%clk
0:03:19]} 14. Qg7 {[%clk 0:03:16.3]} 14... Nxd4 {[%clk 0:02:32.7]} 15. Qxh8
{[%clk 0:03:11.5]} 15... Qg5 {[%clk 0:02:23.7]} 16. Nxc7+ {[%clk 0:03:05.4]}
16... Kd8 {[%clk 0:02:21.4]} 17. Nxa8 {[%clk 0:03:03.8]} 17... Bc6 {[%clk
0:02:13.9]} 18. g3 {[%clk 0:02:47.9]} 18... Qxc1 {[%clk 0:01:31]} 19. Qxg8+
{[%clk 0:02:35.8]} 19... Ke7 {[%clk 0:01:25.7]} 20. f6+ {[%clk 0:02:27.4]} 20...
Ke6 {[%clk 0:01:20]} 21. Qg4+ {[%clk 0:02:22.8]} 21... Ke5 {[%clk 0:01:11.3]}
22. Qf4+ {[%clk 0:02:03.3]} 22... Kd5 {[%clk 0:01:05.5]} 23. Qxc1 {[%clk
0:02:01]} 1-0

[Event "Live Chess"]
[Site "Chess.com"]
[Date "2024.06.01"]
[Round "-"]
[White "cymbalshift"]
[Black "ossie57"]
[Result "0-1"]
[WhiteElo "1667"]
[BlackElo "1655"]
[TimeControl "300"]
[EndTime "12:22:21 PDT"]
[Termination "ossie57 won on time"]

1. d4 {[%clk 0:04:58.2]} 1... e6 {[%clk 0:04:57.1]} 2. e4 {[%clk 0:04:55.8]}
2... d5 {[%clk 0:04:47.6]} 3. Nc3 {[%clk 0:04:54.2]} 3... Bb4 {[%clk 0:04:42.3]}
4. e5 {[%clk 0:04:52.5]} 4... Ne7 {[%clk 0:04:36.5]} 5. h4 {[%clk 0:04:30.3]}
5... c5 {[%clk 0:04:33.6]} 6. a3 {[%clk 0:04:28.4]} 6... Bxc3+ {[%clk
0:04:29.2]} 7. bxc3 {[%clk 0:04:28.3]} 7... Nbc6 {[%clk 0:04:20]} 8. Qg4 {[%clk
0:04:25.6]} 8... Qa5 {[%clk 0:04:07.8]} 9. Bd2 {[%clk 0:04:12.4]} 9... cxd4
{[%clk 0:04:06.1]} 10. cxd4 {[%clk 0:04:08.7]} 10... Qb6 {[%clk 0:04:03.3]} 11.
Nf3 {[%clk 0:03:55.5]} 11... Rg8 {[%clk 0:04:00.2]} 12. Bd3 {[%clk 0:03:46.3]}
12... h5 {[%clk 0:03:51.8]} 13. Qf4 {[%clk 0:03:29.1]} 13... Nf5 {[%clk
0:03:22.7]} 14. c3 {[%clk 0:03:19.4]} 14... Bd7 {[%clk 0:03:10.9]} 15. O-O
{[%clk 0:03:17.3]} 15... Qd8 {[%clk 0:03:09.4]} 16. Rfb1 {[%clk 0:03:02.5]}
16... b6 {[%clk 0:03:06.9]} 17. Ng5 {[%clk 0:02:41.9]} 17... Nce7 {[%clk
0:03:01.9]} 18. g4 {[%clk 0:02:30.4]} 18... Ng6 {[%clk 0:02:47.1]} 19. Qf3
{[%clk 0:02:09.1]} 19... Ngxh4 {[%clk 0:02:40.8]} 20. Qh3 {[%clk 0:01:54.6]}
20... hxg4 {[%clk 0:02:39.2]} 21. Qxg4 {[%clk 0:01:50.9]} 21... Rh8 {[%clk
0:02:09.4]} 22. a4 {[%clk 0:01:40.7]} 22... f6 {[%clk 0:01:57.3]} 23. Nh3 {[%clk
0:01:16.8]} 23... a6 {[%clk 0:01:43.6]} 24. Re1 {[%clk 0:01:02.8]} 24... fxe5
{[%clk 0:01:40.5]} 25. Rxe5 {[%clk 0:00:54.1]} 25... Qf6 {[%clk 0:01:37.8]} 26.
Bg5 {[%clk 0:00:50.9]} 26... Qg6 {[%clk 0:01:21.9]} 27. Nf4 {[%clk 0:00:48.6]}
27... Qxg5 {[%clk 0:01:19.3]} 28. Qxg5 {[%clk 0:00:46.7]} 28... Nf3+ {[%clk
0:01:18.6]} 29. Kg2 {[%clk 0:00:38.1]} 29... Nxg5 {[%clk 0:01:17.6]} 30. Bxf5
{[%clk 0:00:35.9]} 30... Ne4 {[%clk 0:01:09]} 31. Nxd5 {[%clk 0:00:29]} 31...
Kf7 {[%clk 0:01:02.2]} 32. Bxe4 {[%clk 0:00:24.1]} 32... exd5 {[%clk 0:01:01.5]}
33. Bxd5+ {[%clk 0:00:23.1]} 33... Kf6 {[%clk 0:00:59.3]} 34. Bxa8 {[%clk
0:00:20.3]} 34... Rxa8 {[%clk 0:00:57.7]} 35. Rb1 {[%clk 0:00:19.2]} 35... Bc6+
{[%clk 0:00:55.3]} 36. d5 {[%clk 0:00:16.6]} 36... Bxa4 {[%clk 0:00:53.5]} 37.
Re6+ {[%clk 0:00:09]} 37... Kf5 {[%clk 0:00:51.9]} 38. Rbe1 {[%clk 0:00:05.7]}
38... Bc2 {[%clk 0:00:47.6]} 39. Kf3 {[%clk 0:00:02.9]} 39... Kg5 {[%clk
0:00:30.7]} 40. R1e5+ {[%clk 0:00:02.8]} 40... Kh4 {[%clk 0:00:28.4]} 41. Rxb6
{[%clk 0:00:00.5]} 41... Rf8+ {[%clk 0:00:26.8]} 0-1

[Event "Live Chess"]
[Site "Chess.com"]
[Date "2024.06.01"]
[Round "-"]
[White "Stanbad1"]
[Black "Hacker_2009"]
[Result "1/2-1/2"]
[WhiteElo "2673"]
[BlackElo "2226"]
[TimeControl "300"]
[EndTime "12:22:28 PDT"]
[Termination "Game drawn by repetition"]

1. d4 {[%clk 0:04:57.2]} 1... Nf6 {[%clk 0:04:58.4]} 2. Nc3 {[%clk 0:04:56.5]}
2... e6 {[%clk 0:04:56.9]} 3. e4 {[%clk 0:04:55.6]} 3... d5 {[%clk 0:04:55]} 4.
Bg5 {[%clk 0:04:54.6]} 4... Be7 {[%clk 0:04:53.4]} 5. e5 {[%clk 0:04:52.8]} 5...
Nfd7 {[%clk 0:04:52.2]} 6. Bxe7 {[%clk 0:04:46.5]} 6... Qxe7 {[%clk 0:04:52.1]}
7. f4 {[%clk 0:04:45.9]} 7... c5 {[%clk 0:04:50.9]} 8. Nb5 {[%clk 0:04:44.4]}
8... Nc6 {[%clk 0:04:40.7]} 9. Nc7+ {[%clk 0:04:41.3]} 9... Kd8 {[%clk
0:04:37.9]} 10. Nxa8 {[%clk 0:04:41.2]} 10... cxd4 {[%clk 0:04:36.5]} 11. Qd2
{[%clk 0:04:39]} 11... Nc5 {[%clk 0:04:21.9]} 12. Bd3 {[%clk 0:04:32.9]} 12...
Ne4 {[%clk 0:04:09.8]} 13. Bxe4 {[%clk 0:04:30.9]} 13... dxe4 {[%clk 0:04:09.7]}
14. Ne2 {[%clk 0:04:29.5]} 14... Qc5 {[%clk 0:03:51.7]} 15. O-O-O {[%clk
0:04:27.2]} 15... d3 {[%clk 0:03:47.6]} 16. Nc3 {[%clk 0:04:24.4]} 16... Nb4
{[%clk 0:03:44.4]} 17. Nxe4 {[%clk 0:04:20]} 17... Qc6 {[%clk 0:03:19.5]} 18.
Nc3 {[%clk 0:04:14.5]} 18... Ke7 {[%clk 0:03:16.2]} 19. cxd3 {[%clk 0:04:08.3]}
19... Rd8 {[%clk 0:03:12.5]} 20. d4 {[%clk 0:04:06.1]} 20... Nxa2+ {[%clk
0:03:06.7]} 21. Kb1 {[%clk 0:04:03.5]} 21... Nb4 {[%clk 0:03:06.6]} 22. Rhe1
{[%clk 0:03:59.5]} 22... Bd7 {[%clk 0:03:01.1]} 23. d5 {[%clk 0:03:57.7]} 23...
exd5 {[%clk 0:02:57.9]} 24. Ne4 {[%clk 0:02:58.6]} 24... Qa4 {[%clk 0:02:28.8]}
25. Qd4 {[%clk 0:02:38]} 25... Qc2+ {[%clk 0:00:59.5]} 26. Ka1 {[%clk
0:02:34.9]} 26... Qa4+ {[%clk 0:00:58.7]} 27. Kb1 {[%clk 0:02:34.3]} 27... Qc2+
{[%clk 0:00:57.3]} 28. Ka1 {[%clk 0:02:33.6]} 28... Qa4+ {[%clk 0:00:56.9]} 29.
Kb1 {[%clk 0:02:33.1]} 1/2-1/2

[Event "Live Chess"]
[Site "Chess.com"]
[Date "2024.06.01"]
[Round "-"]
[White "bonantagulo"]
[Black "Ninifu"]
[Result "1-0"]
[WhiteElo "2097"]
[BlackElo "2012"]
[TimeControl "300"]
[EndTime "12:22:35 PDT"]
[Termination "bonantagulo won by resignation"]

1. d4 {[%clk 0:04:50.3]} 1... Nf6 {[%clk 0:04:58.1]} 2. c4 {[%clk 0:04:49.6]}
2... g6 {[%clk 0:04:57.6]} 3. Nf3 {[%clk 0:04:48.7]} 3... Bg7 {[%clk 0:04:56.8]}
4. Nc3 {[%clk 0:04:48.3]} 4... O-O {[%clk 0:04:56.2]} 5. e4 {[%clk 0:04:47.9]}
5... d6 {[%clk 0:04:55.8]} 6. Be2 {[%clk 0:04:47.4]} 6... e5 {[%clk 0:04:55.2]}
7. O-O {[%clk 0:04:46.3]} 7... Nh5 {[%clk 0:04:54.1]} 8. Bg5 {[%clk 0:04:29.9]}
8... f6 {[%clk 0:04:50.6]} 9. Be3 {[%clk 0:04:20.1]} 9... Nf4 {[%clk 0:04:44.1]}
10. Qd2 {[%clk 0:04:04.3]} 10... Nxe2+ {[%clk 0:04:38.2]} 11. Qxe2 {[%clk
0:04:04.2]} 11... Bg4 {[%clk 0:04:29.6]} 12. h3 {[%clk 0:03:53.9]} 12... Bxf3
{[%clk 0:04:27.9]} 13. Qxf3 {[%clk 0:03:53.8]} 13... Nc6 {[%clk 0:04:27]} 14. d5
{[%clk 0:03:50.7]} 14... Nd4 {[%clk 0:04:26.2]} 15. Bxd4 {[%clk 0:03:39.1]}
15... exd4 {[%clk 0:04:24.4]} 16. Ne2 {[%clk 0:03:39]} 16... f5 {[%clk 0:04:20]}
17. exf5 {[%clk 0:03:25.4]} 17... Rxf5 {[%clk 0:04:14.1]} 18. Qd3 {[%clk
0:03:20.7]} 18... Qh4 {[%clk 0:04:04.5]} 19. Rad1 {[%clk 0:03:02.4]} 19... Re8
{[%clk 0:02:58.3]} 20. Nxd4 {[%clk 0:02:51.5]} 20... Rf4 {[%clk 0:02:51.8]} 21.
Ne6 {[%clk 0:02:44.5]} 21... Rxc4 {[%clk 0:02:11.1]} 22. b3 {[%clk 0:02:22.5]}
22... Re4 {[%clk 0:01:10.1]} 23. g3 {[%clk 0:02:07.6]} 1-0

[Event "Live Chess"]
[Site "Chess.com"]
[Date "2024.06.01"]
[Round "-"]
[White "Brooms1989"]
[Black "MaximKovalenko83"]
[Result "0-1"]
[WhiteElo "1088"]
[BlackElo "2225"]
[TimeControl "300"]
[EndTime "12:22:44 PDT"]
[Termination "MaximKovalenko83 won by resignation"]

1. e4 {[%clk 0:04:57.3]} 1... e5 {[%clk 0:04:55.9]} 2. Nc3 {[%clk 0:04:56.3]}
2... Nc6 {[%clk 0:04:53.8]} 3. Bc4 {[%clk 0:04:54.9]} 3... Bc5 {[%clk
0:04:51.8]} 4. Qg4 {[%clk 0:04:53]} 4... g6 {[%clk 0:04:42.7]} 5. Qf3 {[%clk
0:04:49.8]} 5... Nf6 {[%clk 0:04:40.2]} 6. d3 {[%clk 0:04:45.1]} 6... Nd4 {[%clk
0:04:36.9]} 7. Qd1 {[%clk 0:04:42.2]} 7... O-O {[%clk 0:04:35.1]} 8. Nge2 {[%clk
0:04:40.6]} 8... Ne6 {[%clk 0:04:23.3]} 9. O-O {[%clk 0:04:35]} 9... Re8 {[%clk
0:04:19.6]} 10. Bg5 {[%clk 0:04:26.4]} 10... Nxg5 {[%clk 0:04:17.7]} 11. h3
{[%clk 0:04:21.4]} 0-1

[Event "Live Chess"]
[Site "Chess.com"]
[Date "2024.06.01"]
[Round "-"]
[White "FMOlexandrProhorov"]
[Black "Delacorta"]
[Result "1-0"]
[WhiteElo "2360"]
[BlackElo "1506"]
[TimeControl "300"]
[EndTime "12:23:01 PDT"]
[Termination "FMOlexandrProhorov won by resignation"]

1. e4 {[%clk 0:04:57]} 1... e6 {[%clk 0:04:58.9]} 2. Nf3 {[%clk 0:04:54.3]} 2...
d5 {[%clk 0:04:55.7]} 3. e5 {[%clk 0:04:53.4]} 3... c5 {[%clk 0:04:54.3]} 4. b4
{[%clk 0:04:52]} 4... c4 {[%clk 0:04:52.3]} 5. a3 {[%clk 0:04:37.5]} 5... Bd7
{[%clk 0:04:50.5]} 6. d4 {[%clk 0:04:35]} 6... Ba4 {[%clk 0:04:48.7]} 7. Nc3
{[%clk 0:04:32.3]} 7... Bc6 {[%clk 0:04:45.7]} 8. Be2 {[%clk 0:04:30.5]} 8...
Be7 {[%clk 0:04:33.3]} 9. h4 {[%clk 0:04:28.1]} 9... b5 {[%clk 0:04:31.9]} 10.
h5 {[%clk 0:04:22.4]} 10... Nh6 {[%clk 0:04:30.7]} 11. Bf4 {[%clk 0:04:10.7]}
11... Nd7 {[%clk 0:04:27.7]} 12. Qd2 {[%clk 0:04:08]} 12... Qb6 {[%clk
0:04:19.2]} 13. Bxh6 {[%clk 0:04:04]} 13... gxh6 {[%clk 0:04:18.1]} 14. Qxh6
{[%clk 0:04:03.9]} 14... O-O-O {[%clk 0:04:13.7]} 15. Qe3 {[%clk 0:03:50.5]}
15... Rdg8 {[%clk 0:04:08.7]} 16. g3 {[%clk 0:03:49.3]} 16... h6 {[%clk
0:03:56.8]} 17. Bf1 {[%clk 0:03:47.9]} 17... Qd8 {[%clk 0:03:44.8]} 18. Bh3
{[%clk 0:03:46.4]} 18... Bg5 {[%clk 0:03:40.1]} 19. Qe2 {[%clk 0:03:40.8]} 19...
Nb6 {[%clk 0:03:24.7]} 20. Nh2 {[%clk 0:03:29.7]} 20... Bd7 {[%clk 0:03:22.7]}
21. f4 {[%clk 0:03:27.7]} 21... Be7 {[%clk 0:03:13.7]} 22. Bg4 {[%clk
0:03:26.6]} 22... f5 {[%clk 0:03:04.8]} 23. exf6 {[%clk 0:03:23.3]} 23... Bxf6
{[%clk 0:03:02.2]} 24. O-O {[%clk 0:03:15.4]} 24... Bxd4+ {[%clk 0:02:57.5]} 25.
Kh1 {[%clk 0:03:13.4]} 25... Bxc3 {[%clk 0:02:38.1]} 26. Rad1 {[%clk 0:03:11.9]}
26... Bc6 {[%clk 0:02:36.3]} 27. Bxe6+ {[%clk 0:03:05]} 27... Kb8 {[%clk
0:02:33.4]} 28. Bxg8 {[%clk 0:03:02.5]} 28... d4+ {[%clk 0:02:21.1]} 29. Nf3
{[%clk 0:03:01]} 29... Rxg8 {[%clk 0:02:13.6]} 30. Qe5+ {[%clk 0:02:59.3]} 30...
Ka8 {[%clk 0:02:06.3]} 31. Kh2 {[%clk 0:02:59.2]} 31... Re8 {[%clk 0:01:58.2]}
32. Qc5 {[%clk 0:02:48.6]} 32... Re2+ {[%clk 0:01:55.6]} 33. Kh3 {[%clk
0:02:44.2]} 33... Qc8+ {[%clk 0:01:49.9]} 34. g4 {[%clk 0:02:42.6]} 34... Nd5
{[%clk 0:01:38.7]} 35. Ne5 {[%clk 0:02:38.4]} 35... Nxf4+ {[%clk 0:01:32.4]} 36.
Rxf4 {[%clk 0:02:34.2]} 36... Bg2+ {[%clk 0:01:31.3]} 37. Kg3 {[%clk 0:02:32.8]}
37... Re3+ {[%clk 0:01:08.3]} 38. Kxg2 {[%clk 0:02:27.2]} 1-0

[Event "Live Chess"]
[Site "Chess.com"]
[Date "2024.06.01"]
[Round "-"]
[White "Ferrarifan27"]
[Black "mrsmarple1968"]
[Result "1-0"]
[WhiteElo "2059"]
[BlackElo "1739"]
[TimeControl "300"]
[EndTime "12:23:13 PDT"]
[Termination "Ferrarifan27 won on time"]

1. e4 {[%clk 0:04:54.7]} 1... e5 {[%clk 0:04:55.6]} 2. Nf3 {[%clk 0:04:52.2]}
2... Nc6 {[%clk 0:04:50.9]} 3. Bb5 {[%clk 0:04:48.5]} 3... a6 {[%clk 0:04:48]}
4. Ba4 {[%clk 0:04:46.4]} 4... Nf6 {[%clk 0:04:44.8]} 5. O-O {[%clk 0:04:44.3]}
5... d6 {[%clk 0:04:41.3]} 6. Re1 {[%clk 0:04:40]} 6... Be7 {[%clk 0:04:34.6]}
7. c3 {[%clk 0:04:35.4]} 7... b5 {[%clk 0:04:31.8]} 8. Bc2 {[%clk 0:04:33.2]}
8... O-O {[%clk 0:04:27.6]} 9. d4 {[%clk 0:04:32.2]} 9... exd4 {[%clk
0:04:22.5]} 10. cxd4 {[%clk 0:04:31.4]} 10... Bg4 {[%clk 0:04:20.3]} 11. Be3
{[%clk 0:04:25.8]} 11... Nb4 {[%clk 0:04:01.9]} 12. Bb3 {[%clk 0:04:11.6]} 12...
a5 {[%clk 0:03:59.8]} 13. a3 {[%clk 0:04:03.7]} 13... Nc6 {[%clk 0:03:57]} 14.
h3 {[%clk 0:04:01.1]} 14... Bh5 {[%clk 0:03:54.4]} 15. Nbd2 {[%clk 0:03:59.4]}
15... d5 {[%clk 0:03:28.5]} 16. e5 {[%clk 0:03:52.7]} 16... Ne4 {[%clk
0:03:15.2]} 17. Qc2 {[%clk 0:03:41.1]} 17... Nxd2 {[%clk 0:02:54.8]} 18. Nxd2
{[%clk 0:03:39.3]} 18... Qd7 {[%clk 0:02:35.3]} 19. Rac1 {[%clk 0:03:36.6]}
19... Ra6 {[%clk 0:02:32.2]} 20. a4 {[%clk 0:03:33.4]} 20... b4 {[%clk
0:02:22.9]} 21. Nf1 {[%clk 0:03:16.8]} 21... Bg6 {[%clk 0:02:00.2]} 22. Qd2
{[%clk 0:03:14.7]} 22... Bd8 {[%clk 0:01:34.5]} 23. Ng3 {[%clk 0:03:04.9]} 23...
Ra7 {[%clk 0:01:29.7]} 24. Bc2 {[%clk 0:02:48.5]} 24... Ne7 {[%clk 0:01:26.6]}
25. b3 {[%clk 0:02:45.2]} 25... Bxc2 {[%clk 0:01:18.6]} 26. Qxc2 {[%clk
0:02:43.7]} 26... Ng6 {[%clk 0:01:12.2]} 27. Qc6 {[%clk 0:02:28]} 27... Qxc6
{[%clk 0:01:03.7]} 28. Rxc6 {[%clk 0:02:27.9]} 28... h6 {[%clk 0:00:53.8]} 29.
Rec1 {[%clk 0:02:25.1]} 29... Ne7 {[%clk 0:00:49.6]} 30. R6c5 {[%clk 0:02:23.1]}
30... c6 {[%clk 0:00:42]} 31. R5c2 {[%clk 0:02:08.4]} 31... Bb6 {[%clk
0:00:36.1]} 32. Kf1 {[%clk 0:02:03.1]} 32... Kh7 {[%clk 0:00:32.5]} 33. Ke2
{[%clk 0:02:01.6]} 33... g6 {[%clk 0:00:31.1]} 34. Kd3 {[%clk 0:02:00.5]} 34...
Rc7 {[%clk 0:00:27.8]} 35. h4 {[%clk 0:01:41.3]} 35... Rfc8 {[%clk 0:00:23.3]}
36. h5 {[%clk 0:01:39.6]} 36... c5 {[%clk 0:00:17.5]} 37. dxc5 {[%clk
0:01:37.7]} 37... Ba7 {[%clk 0:00:16.1]} 38. hxg6+ {[%clk 0:01:31.2]} 38... Nxg6
{[%clk 0:00:14.6]} 39. Bd4 {[%clk 0:01:28.5]} 39... Re7 {[%clk 0:00:12.8]} 40.
Nf5 {[%clk 0:01:16.5]} 40... Ree8 {[%clk 0:00:10.4]} 41. Nd6 {[%clk 0:01:14.9]}
41... Nf4+ {[%clk 0:00:08.6]} 42. Kd2 {[%clk 0:01:13.6]} 42... Nxg2 {[%clk
0:00:07.1]} 43. Nxe8 {[%clk 0:01:09.6]} 43... Rxe8 {[%clk 0:00:04.5]} 44. Rg1
{[%clk 0:01:06.7]} 1-0

[Event "Live Chess"]
[Site "Chess.com"]
[Date "2024.06.01"]
[Round "-"]
[White "MaksymYurii"]
[Black "LL220284LL"]
[Result "0-1"]
[WhiteElo "933"]
[BlackElo "2549"]
[TimeControl "300"]
[EndTime "12:23:37 PDT"]
[Termination "LL220284LL won by checkmate"]

1. e4 {[%clk 0:04:38.8]} 1... c5 {[%clk 0:04:59.9]} 2. Nf3 {[%clk 0:04:37.6]}
2... Nc6 {[%clk 0:04:58.2]} 3. Bc4 {[%clk 0:04:36.1]} 3... e6 {[%clk 0:04:57.1]}
4. Nc3 {[%clk 0:04:34.3]} 4... Nge7 {[%clk 0:04:56.5]} 5. O-O {[%clk 0:04:32.5]}
5... d5 {[%clk 0:04:55]} 6. Bb3 {[%clk 0:04:30.8]} 6... d4 {[%clk 0:04:52.5]} 7.
Nb5 {[%clk 0:04:27]} 7... a6 {[%clk 0:04:49.6]} 8. Nd6+ {[%clk 0:04:25.2]} 8...
Qxd6 {[%clk 0:04:48.4]} 9. e5 {[%clk 0:04:22.5]} 9... Nxe5 {[%clk 0:04:47.1]}
10. Nxe5 {[%clk 0:04:20]} 10... Qxe5 {[%clk 0:04:47]} 11. Re1 {[%clk 0:04:18.5]}
11... Qc7 {[%clk 0:04:46.2]} 12. d3 {[%clk 0:04:16.7]} 12... Nf5 {[%clk
0:04:45.3]} 13. g3 {[%clk 0:04:01.9]} 13... Bd6 {[%clk 0:04:44.5]} 14. Bf4
{[%clk 0:03:59.6]} 14... Bxf4 {[%clk 0:04:43.2]} 15. gxf4 {[%clk 0:03:58.6]}
15... Qxf4 {[%clk 0:04:43.1]} 16. Qh5 {[%clk 0:03:44.6]} 16... O-O {[%clk
0:04:34.9]} 17. c4 {[%clk 0:03:30.5]} 17... b6 {[%clk 0:04:32.9]} 18. Bd1 {[%clk
0:03:24.4]} 18... Bb7 {[%clk 0:04:26.4]} 19. f3 {[%clk 0:03:00.1]} 19... Ne3
{[%clk 0:04:23.6]} 20. Be2 {[%clk 0:02:49.6]} 20... g6 {[%clk 0:04:21.8]} 21.
Qh3 {[%clk 0:02:42.1]} 21... Nc2 {[%clk 0:04:21.1]} 22. b4 {[%clk 0:02:10.3]}
22... Qe3+ {[%clk 0:04:18.5]} 23. Kh1 {[%clk 0:02:05.7]} 23... Nxa1 {[%clk
0:04:17.5]} 24. Rxa1 {[%clk 0:02:00.1]} 24... Qxe2 {[%clk 0:04:16.4]} 25. Rg1
{[%clk 0:01:51.7]} 25... Bxf3+ {[%clk 0:04:15]} 26. Rg2 {[%clk 0:01:48.5]} 26...
Qf1# {[%clk 0:04:14.1]} 0-1

[Event "Live Chess"]
[Site "Chess.com"]
[Date "2024.06.01"]
[Round "-"]
[White "Nazar-Makarchuk"]
[Black "educatedlad"]
[Result "0-1"]
[WhiteElo "1506"]
[BlackElo "1764"]
[TimeControl "300"]
[EndTime "12:23:53 PDT"]
[Termination "educatedlad won by resignation"]

1. e4 {[%clk 0:04:48.6]} 1... c5 {[%clk 0:04:58.3]} 2. Nf3 {[%clk 0:04:47.9]}
2... e6 {[%clk 0:04:55.8]} 3. d4 {[%clk 0:04:47.4]} 3... Nc6 {[%clk 0:04:55.7]}
4. dxc5 {[%clk 0:04:45.7]} 4... Bxc5 {[%clk 0:04:54.7]} 5. Nc3 {[%clk
0:04:44.8]} 5... Nge7 {[%clk 0:04:51.8]} 6. Be3 {[%clk 0:04:39.7]} 6... Bxe3
{[%clk 0:04:49.8]} 7. fxe3 {[%clk 0:04:38.4]} 7... O-O {[%clk 0:04:49.3]} 8. Nd4
{[%clk 0:04:37.4]} 8... Ng6 {[%clk 0:04:47.1]} 9. Nxc6 {[%clk 0:04:35.6]} 9...
bxc6 {[%clk 0:04:44.9]} 10. Bd3 {[%clk 0:04:34.9]} 10... d5 {[%clk 0:04:41.1]}
11. exd5 {[%clk 0:04:33.6]} 11... exd5 {[%clk 0:04:41]} 12. Bxg6 {[%clk
0:04:32.8]} 12... fxg6 {[%clk 0:04:39.3]} 13. Qe2 {[%clk 0:04:30.3]} 13... Qh4+
{[%clk 0:04:37.5]} 14. Kd2 {[%clk 0:04:28.9]} 14... Rf2 {[%clk 0:04:33.3]} 15.
Rae1 {[%clk 0:04:21.4]} 15... Rxe2+ {[%clk 0:04:32.1]} 16. Rxe2 {[%clk
0:04:20.6]} 16... d4 {[%clk 0:04:27.7]} 17. exd4 {[%clk 0:04:19.2]} 17... Qxd4+
{[%clk 0:04:25]} 18. Kc1 {[%clk 0:04:17.3]} 18... Bf5 {[%clk 0:04:21.5]} 19. Rd2
{[%clk 0:04:15.5]} 19... Qf4 {[%clk 0:04:20.2]} 20. Rd1 {[%clk 0:04:14.2]} 20...
Rd8 {[%clk 0:04:18.7]} 21. g3 {[%clk 0:04:11.7]} 21... Qg5 {[%clk 0:04:16.4]}
22. Nb1 {[%clk 0:04:06.6]} 22... Rxd2 {[%clk 0:04:09.3]} 23. Nxd2 {[%clk
0:04:04.7]} 23... Bg4 {[%clk 0:04:03.2]} 24. Re1 {[%clk 0:04:00.2]} 24... Qd5
{[%clk 0:03:52.9]} 25. b3 {[%clk 0:03:51.1]} 25... Qd4 {[%clk 0:03:47.9]} 26.
Ne4 {[%clk 0:03:48.2]} 26... Qa1+ {[%clk 0:03:45.5]} 27. Kd2 {[%clk 0:03:46.6]}
27... Qd4+ {[%clk 0:03:42.7]} 28. Kc1 {[%clk 0:03:44.7]} 28... Bf5 {[%clk
0:03:42]} 29. Nd2 {[%clk 0:03:39.6]} 29... Qa1+ {[%clk 0:03:40.2]} 30. Nb1
{[%clk 0:03:37.1]} 30... Qxa2 {[%clk 0:03:39.3]} 31. Kd2 {[%clk 0:03:35.8]}
31... Qxc2+ {[%clk 0:03:38]} 0-1